Cogmind - Beta 17 @@@ ROGUE MODE // 2026.06.27 @ 18:47:13 Player: BlobtheGreat Result: Destroyed by H-71 Marshal with Heavy Mass Driver Performance ------------- Evolutions (2) 1000 Regions Visited (8) 1600 Robots Destroyed (102) 510 Value Destroyed (3594) 3594 Prototype IDs (3) 60 Alien Tech Used (0) 0 Bonus (12579) 12579 TOTAL SCORE: 19343 Bonus ------- High Alert Combat Kills 357 Follower Combat Kills 372 Prayed to X0-1V1 5000 Major X0-1V1 Interference 6650 Entered Garrisons 200 Cogmind --------- Core Integrity 0/615 Matter 123/300 Energy 900/900 System Corruption 21% Temperature Cool (0) Movement Core (400) Ox7 Location -8/Materials Parts ------- > --- POWER (2) -------- (None) > --- PROPULSION (3) --- (None) > --- UTILITY (3) ------ Large Storage Unit Core Analyzer X0-1V1's Piety Tracker > --- WEAPON (3) ------- Scythe > --- INVENTORY (15) --- Makeshift Leg Trap Scanner Seismic Detector Actuator Array Improved Medium Armor Plating Improved Medium Armor Plating Improved Medium Armor Plating Improved Medium Armor Plating Heavy Rocket Launcher Flamer Powered Hammer Peak State ------------ > --- POWER ------------ Light Nuclear Core > --- PROPULSION ------- Carbon-fiber Leg Improved Carbon-fiber Leg Improved Carbon-fiber Leg > --- UTILITY ---------- Large Storage Unit Core Analyzer Improved Medium Armor Plating X0-1V1's Piety Tracker > --- WEAPON ----------- Gauss Rifle Gauss Rifle > --- INVENTORY -------- Makeshift Leg Trap Scanner Seismic Detector Actuator Array Light Armor Plating Improved Medium Armor Plating Improved Medium Armor Plating Improved Medium Armor Plating Improved Medium Armor Plating Improved Medium Armor Plating Gauss Rifle Heavy Rocket Launcher Flamer Powered Hammer Scimitar of Distortion [Rating: 49] Favorites ----------- Power Reinforced Ion Engine Engine Reinforced Ion Engine Power Core Light Nuclear Core Propulsion Light Treads Treads Light Treads Leg Improved Carbon-fiber Leg Utility X0-1V1's Piety Tracker Device X0-1V1's Piety Tracker Storage Large Storage Unit Processor Core Analyzer Protection Hardened Heavy Armor Plating Weapon Gauss Rifle Energy Gun Small Laser Ballistic Gun Gauss Rifle Launcher Heavy Rocket Launcher Impact Weapon Heavy Flail Slashing Weapon Axe Build | -11 -10 -9 -9 -9 -8 -8 -8 -8 ------- Run | Yrd Mat Mat Min Exi Min Mat Gar Mat Slots Evolved 4 | . . 2 . . . 2 . . Power . | . . . . . . . . . Propulsion 1 | . . . . . . 1 . . Utility 2 | . . 1 . . . 1 . . Weapon 1 | . . 1 . . . . . . Parts Attached 60 | 6 14 6 5 . 2 10 14 3 Power 7 | 1 1 1 1 . . . 2 1 Engine 5 | 1 1 1 1 . . . . 1 Core 2 | . . . . . . . 2 . Reactor . | . . . . . . . . . Propulsion 20 | 2 6 2 1 . . 2 5 2 Treads 13 | 2 2 2 1 . . 2 2 2 Leg 7 | . 4 . . . . . 3 . Wheel . | . . . . . . . . . Hover . | . . . . . . . . . Flight . | . . . . . . . . . Utility 15 | 1 2 2 2 . 1 2 5 . Device 5 | . 2 1 1 . . . 1 . Storage 2 | 1 . 1 . . . . . . Processor 1 | . . . . . . . 1 . Hackware . | . . . . . . . . . Protection 7 | . . . 1 . 1 2 3 . Artifact . | . . . . . . . . . Weapon 18 | 2 5 1 1 . 1 6 2 . Energy Gun 3 | 1 2 . . . . . . . Energy Cannon . | . . . . . . . . . Ballistic Gun 7 | 1 2 . . . . 3 1 . Ballistic Cannon . | . . . . . . . . . Launcher 4 | . 1 . 1 . . 1 1 . Special Weapon . | . . . . . . . . . Impact Weapon 3 | . . 1 . . 1 1 . . Slashing Weapon 1 | . . . . . . 1 . . Piercing Weapon . | . . . . . . . . . Special Melee Weapon . | . . . . . . . . . Unidentified Prototypes 3 | . 1 . . . . 1 . 1 Parts Lost 24 | . 4 . 1 . . . 10 9 Power 5 | . 1 . . . . . 3 1 Propulsion 9 | . 1 . . . . . 3 5 Utility 4 | . 1 . . . . . 3 . Weapon 6 | . 1 . 1 . . . 1 3 Highest Loss Streak 9 | . 1 . 1 . . . 7 9 To Critical Strikes . | . . . . . . . . . Average Backups 12 | 4 7 10 14 15 14 14 12 13 Power . | . . . 1 1 1 1 . . Propulsion 5 | 3 3 6 9 11 8 5 2 2 Utility 2 | . 1 1 1 . 1 3 4 8 Weapon 3 | . 1 2 2 3 3 4 4 3 Tool/Special . | . . . . . . . . . Unused Backups 21 | . 3 3 3 . 1 2 . 9 Power . | . . . . . . . . . Propulsion 12 | . 3 3 2 . 1 2 . 1 Utility 8 | . . . 1 . . . . 7 Weapon 1 | . . . . . . . . 1 Tool/Special . | . . . . . . . . . Average Slot Usage (%) 92 | . 89 94 99 90 100 89 89 80 Engine 13 | . 13 11 13 22 22 18 10 . Core 1 | . . . . . . . 4 6 Treads 22 | . 13 33 32 22 22 27 17 6 Leg 5 | . 18 . . . . . 9 14 Device 12 | . 5 16 20 22 13 9 8 9 Storage 10 | . 14 11 11 11 11 9 9 9 Processor 1 | . . . . . . . 3 9 Protection 3 | . . . . . 8 9 8 . Energy Gun 4 | . 10 10 10 1 1 . . . Ballistic Gun 10 | . 13 11 9 . . 10 16 20 Impact Weapon 1 | . . . . . 9 6 . . Slashing Weapon 2 | . . . 1 11 11 . 1 4 Peak Build Rating 49 | 6 20 26 28 28 32 44 49 49 Average Rating 29 | 5 10 23 26 27 31 38 42 42 On Entrance 25 | . 6 20 26 28 28 32 44 49 Avg Prop Armor Cover (%) 5 | . . . . . . . . 5 Naked Turns . | . . . . . . . . . Heaviest Build 66 | 11 12 41 43 43 47 66 66 46 Greatest Support 60 | 40 60 60 60 40 40 60 60 51 Greatest Overweight (x) 8 | . . . 1 1 1 1 1 8 Average Overweight (x) . | . . . . 1 1 . . . Largest Inventory Capacity 15 | 8 8 15 15 15 15 15 15 15 Average Capacity 13 | 7 8 12 15 15 15 15 15 15 Most Carried 15 | 7 8 15 15 15 15 15 15 15 Average Carried 12 | 5 7 10 14 15 14 14 12 13 Final Capacity 15 | 8 8 15 15 15 15 15 15 15 Final Carried 15 | 7 7 15 15 15 15 15 15 11 Class Distribution -------------------- 63% | Scavenger-Mutant 33% | Mutant 3% | Gunner Dominant Class ---------------- Mutant | -10/Materials Scavenger-Mutant | -9/Materials Scavenger-Mutant | -9/Mines Scavenger-Mutant | -9/Exiles Scavenger-Mutant | -8/Mines Scavenger-Mutant | -8/Materials Mutant | -8/Garrison Gunner | -8/Materials Resources | -11 -10 -9 -9 -9 -8 -8 -8 -8 ----------- Run | Yrd Mat Mat Min Exi Min Mat Gar Mat Matter Collected 2488 | 323 270 324 312 . 185 121 851 102 Remotely . | . . . . . . . . . Salvage Created 3131 | 179 534 525 277 . 69 272 1016 259 Parts 203 | 10 33 33 32 . . 13 68 14 Haulers Intercepted 2 | . 1 . . . . . . 1 Recyclers Shooed 3 | 1 . 1 . . . . . 1 Parts Field Recycled . | . . . . . . . . . Retrieved Matter . | . . . . . . . . . Parts Self-Destructed . | . . . . . . . . . Prevented . | . . . . . . . . . Parts Restored . | . . . . . . . . . Kills | -11 -10 -9 -9 -9 -8 -8 -8 -8 ------- Run | Yrd Mat Mat Min Exi Min Mat Gar Mat Combat Hostiles Destroyed 81 | . 12 11 12 . 1 4 39 2 Melee 1 | . . . . . . . 1 . Guns 56 | . 9 11 6 . . 2 26 2 AOE 21 | . 3 . 6 . . . 12 . Classes Destroyed 14 | 3 3 3 2 . 1 . 2 . Worker 6 | 2 2 1 1 . . . . . Builder 2 | . . . 1 . . 1 . . Tunneler 4 | 3 . . . . 1 . . . Hauler 2 | . 1 . . . . . . 1 Recycler 4 | 1 . 1 . . . 1 . 1 Operator 1 | . . . 1 . . . . . Watcher 2 | . . 2 . . . . . . Swarmer 28 | . . 4 7 . . . 17 . Cutter 3 | . . . . . . . 3 . Grunt 33 | . 11 4 4 . . 2 12 . Brawler 1 | . . 1 . . . . . . Sentry 11 | . 1 2 1 . . 1 4 2 Hunter 2 | . . . . . 1 1 . . Programmer 3 | . . . . . . . 3 . Best Kill Streak 7 | 3 3 4 6 . 2 2 7 2 Combat Bots Only 7 | . 3 4 6 . 1 2 7 1 Max Kills in Single Turn 4 | 1 2 2 3 . 1 1 4 2 Gunslinging 1 | . . 1 . . . . 1 . Exploded 4 | . 1 . 3 . . . 4 . Melee 1 | . . . . . . . 1 . Uniques/NPCs Destroyed . | . . . . . . . . . Combat | -11 -10 -9 -9 -9 -8 -8 -8 -8 -------- Run | Yrd Mat Mat Min Exi Min Mat Gar Mat Hostile Shots Fired 443 | . 71 53 47 . 6 21 195 50 Missed 123 | . 23 17 13 . 2 6 47 15 Hits 320 | . 48 36 34 . 4 15 148 35 Melee 5 | . . . . . . . 5 . Projectile 315 | . 48 36 34 . 4 15 143 35 AOE 2 | . . . . . . . 1 1 Critical Strikes 6 | . 1 . . . . . 3 2 Damage Taken 4860 | . 718 319 221 . 51 235 2100 1216 Core 864 | . 126 73 29 . . 40 163 433 Absorbed by Shields 107 | . . 45 62 . . . . . Regen/Repaired (Parts) 98 | . 98 . . . . . . . Core Remaining (%) 88 | 100 70 . . . 95 . . . Volleys Fired 266 | 21 74 34 22 . . 16 92 7 Largest 3 | 2 2 2 2 . . 2 2 3 Hottest 84 | 60 60 63 63 . . 56 56 84 Shots Fired 492 | 40 121 63 43 . . 32 174 19 Gun 476 | 40 115 63 40 . . 32 167 19 Cannon . | . . . . . . . . . Launcher 16 | . 6 . 3 . . . 7 . Special . | . . . . . . . . . Kinetic 362 | 21 69 34 20 . . 32 167 19 Thermal 111 | 19 43 29 20 . . . . . Explosive 16 | . 6 . 3 . . . 7 . Electromagnetic 3 | . 3 . . . . . . . Robot Hit Streak 15 | 8 10 8 3 . . 15 11 5 Robot Miss Streak 7 | 4 7 3 5 . . 5 4 1 Penetration Max 1 | . . . . . . . 1 1 Secondary Targets 8 | . . 2 . . . . 6 . Max Gunslinging Chain 1 | . . 1 . . . . 1 . Shots Hit Robots 309 | 23 81 42 21 . 3 26 99 14 Core Hits 140 | 7 30 19 18 . . 8 51 7 Critical Kills 2 | . . . . . . . 2 . Critical Parts Destroyed 6 | . 1 . . . 1 2 2 . Critical Strikes 8 | . 1 . . . 1 2 4 . Destroy 5 | . 1 . . . . . 4 . Smash 3 | . . . . . 1 2 . . Melee Attacks 25 | . . 2 3 . 3 6 8 3 Impact 9 | . . 2 . . 3 4 . . Slashing 16 | . . . 3 . . 2 8 3 Piercing . | . . . . . . . . . Sneak Attacks 6 | . . 1 3 . 1 1 . . Combat Hostiles . | . . . . . . . . . Follow-up Attacks . | . . . . . . . . . Damage Inflicted 7640 | 284 1341 638 906 . 168 592 3404 307 Guns 4940 | 283 920 564 270 . . 319 2315 269 Cannons . | . . . . . . . . . Explosions 1930 | . 414 . 437 . . . 1079 . Melee 733 | . . 74 180 . 168 273 . 38 Ramming 37 | 1 7 . 19 . . . 10 . Kinetic 4218 | 182 614 396 123 . . 319 2315 269 Thermal 856 | 101 440 168 147 . . . . . Explosive 1759 | . 243 . 437 . . . 1079 . Electromagnetic 37 | . 37 . . . . . . . Impact 515 | . . 74 . . 168 273 . . Slashing 218 | . . . 180 . . . . 38 Piercing . | . . . . . . . . . Highest Corruption 21 | . 2 . 18 . . . 2 21 Average Corruption 5 | . 1 . 11 . . . 1 14 Corruption Purged . | . . . . . . . . . Corruption Blocked . | . . . . . . . . . Effects 52 | . 8 . 19 . . . 13 12 Message Errors 14 | . 2 . 7 . . . 3 2 Matter Fused 14 | . 1 . 7 . . . 2 4 Heat Flow Errors 5 | . 1 . . . . . 3 1 Energy Discharges 2 | . 1 . . . . . 1 . Data Loss (minor) 6 | . 2 . 1 . . . 1 2 Data Loss (major) 5 | . . . 2 . . . 3 . Misfires 2 | . 1 . 1 . . . . . Alerts 2 | . . . 1 . . . . 1 Misdirections 1 | . . . . . . . . 1 Weapon Failures 1 | . . . . . . . . 1 Overload Shots . | . . . . . . . . . Overflow Damage 456 | . 3 . 49 . 87 198 119 . Projectiles . | . . . . . . . . . Explosions 146 | . 3 . 24 . . . 119 . Melee 310 | . . . 25 . 87 198 . . Knockbacks 2 | . . . . . . 1 1 . Impact 2 | . . . . . . 1 1 . Kinetic . | . . . . . . . . . Secondary . | . . . . . . . . . Self-Inflicted Damage 281 | . 115 . . . . . 166 . Shots 7 | . 3 . . . . . 4 . Rammed 3 | 1 . . 2 . . . . . Targets Rammed 10 | 1 4 . 2 . . . 3 . Kicked 6 | . 4 . . . . . 2 . Crushed 1 | . . . . . . . 1 . Highest Temperature 381 | . 133 . 13 . . . 381 212 Average Temperature 79 | . 41 . 9 . . . 115 121 Received Heat Transfer 1227 | . 333 66 39 . . 27 591 171 Effects 1 | . . . . . . . 1 . Shutdowns 1 | . . . . . . . 1 . Siege Activations . | . . . . . . . . . Martial Activations . | . . . . . . . . . Shielding Activations . | . . . . . . . . . Robots Disrupted . | . . . . . . . . . Combat Hostiles . | . . . . . . . . . Robots Corrupted 3 | . . . . . 1 2 . . Combat Hostiles 3 | . . . . . 1 2 . . Parts Fried 7 | . . . . . 3 4 . . Impact Corruptions 7 | . . . . . 3 4 . . Robots Melted . | . . . . . . . . . Combat Hostiles . | . . . . . . . . . Parts Melted 4 | . 1 . 3 . . . . . Heat Transferred 1700 | 225 800 375 300 . . . . . Parts Sabotaged . | . . . . . . . . . Parts Stolen . | . . . . . . . . . Parts Stripped . | . . . . . . . . . Power Chain Reactions 2 | . 2 . . . . . . . Alert | -11 -10 -9 -9 -9 -8 -8 -8 -8 ------- Run | Yrd Mat Mat Min Exi Min Mat Gar Mat Maximum Alert Level 4 | . . . 3 . 1 . 4 2 Low Security (%) 72 | 100 100 100 71 . 97 100 30 . Level 1 5 | . . . 8 . 2 . 13 . Level 2 8 | . . . 4 . . . 15 100 Level 3 8 | . . . 16 . . . 23 . Level 4 4 | . . . . . . . 16 . Level 5 . | . . . . . . . . . High Security . | . . . . . . . . . Max Security . | . . . . . . . . . Peak Influence 1185 | 10 80 180 987 . 200 76 1185 588 Initial 577 | . . 4 36 . . 48 7 577 Average 226 | . 22 94 227 . 34 15 557 545 Influence Increases 4145 | 30 336 390 1573 . 236 154 1338 88 Destroy 0b10 Robot/C 1980 | . 240 220 580 . 20 80 800 40 Destroy 0b10 Robot/NC 110 | 30 15 20 20 . 5 10 . 10 Destroy Leader 238 | . 32 54 70 . 10 20 30 22 Allied During Kill 93 | . . . 88 . 1 . 4 . Successful Hack 31 | . 14 6 . . . 11 . . Disable Machine 90 | . . 15 30 . . . 45 . Anti-Garrison Action 350 | . . . . . . . 350 . Destroy Structure 177 | . 35 . 29 . . 3 109 1 Lose Combat Pursuer 120 | . . 75 . . . 30 . 15 Miscellaneous 956 | . . . 756 . 200 . . . Influence Decreases 3690 | 30 325 307 553 1114 112 266 165 818 Entered New Map 1868 | . . 7 58 1114 . 76 5 608 Time Decay 1431 | 30 294 300 405 . 92 190 . 120 Lost Part 231 | . 31 . 10 . . . 100 90 Lost Ally 160 | . . . 80 . 20 . 60 . Squads Dispatched 8 | . 3 1 3 . . . . 1 Investigation 4 | . 1 . 3 . . . . . Extermination . | . . . . . . . . . Reinforcement 4 | . 2 1 . . . . . 1 Assault . | . . . . . . . . . Garrison . | . . . . . . . . . Intercept . | . . . . . . . . . Searches Triggered . | . . . . . . . . . Construction Impeded . | . . . . . . . . . Haulers Reinforced . | . . . . . . . . . Active Scanning Responses . | . . . . . . . . . Cargo Convoy Interrupts . | . . . . . . . . . Stealth | -11 -10 -9 -9 -9 -8 -8 -8 -8 --------- Run | Yrd Mat Mat Min Exi Min Mat Gar Mat Distress Signals 4 | . . 2 1 . . 1 . . Communications Jammed . | . . . . . . . . . Distress Signals . | . . . . . . . . . Times Spotted 131 | . 22 17 27 . 1 12 42 10 Peak Tracking Total 8 | . 5 7 4 . 1 4 8 5 Tactical Retreats 4 | . . 2 . . . 1 . 1 Traps | -11 -10 -9 -9 -9 -8 -8 -8 -8 ------- Run | Yrd Mat Mat Min Exi Min Mat Gar Mat Traps Triggered 9 | . 3 . . . . . 6 . Indirectly . | . . . . . . . . . Trap Hack Attempts . | . . . . . . . . . Triggered . | . . . . . . . . . Disarmed . | . . . . . . . . . Reprogrammed . | . . . . . . . . . Reused . | . . . . . . . . . Traps Extracted . | . . . . . . . . . Installed . | . . . . . . . . . Triggered . | . . . . . . . . . Machines | -11 -10 -9 -9 -9 -8 -8 -8 -8 ---------- Run | Yrd Mat Mat Min Exi Min Mat Gar Mat Machines Disabled 11 | . . 1 2 . . . 8 . Max in Single Turn 1 | . . 1 1 . . . 1 . Garrison Relay 5 | . . . . . . . 5 . Machines Repaired . | . . . . . . . . . Machines Dismantled . | . . . . . . . . . Machines Sabotaged . | . . . . . . . . . Overloaded Fab Kills . | . . . . . . . . . Hacking | -11 -10 -9 -9 -9 -8 -8 -8 -8 --------- Run | Yrd Mat Mat Min Exi Min Mat Gar Mat Machines Accessed 12 | . 6 2 . 1 . 3 . . Terminals 9 | . 5 2 . . . 2 . . Fabricators . | . . . . . . . . . Repair Stations 1 | . 1 . . . . . . . Recycling Units . | . . . . . . . . . Scanalyzers . | . . . . . . . . . Garrison Access 1 | . . . . . . 1 . . Total Hacks 35 | . 21 5 . 1 . 8 . . Successful 21 | . 13 2 . 1 . 5 . . Failed 14 | . 8 3 . . . 3 . . Catastrophic 2 | . . . . . . 2 . . Database Lockouts . | . . . . . . . . . Manual 29 | . 18 5 . . . 6 . . Terminals 30 | . 18 5 . . . 7 . . Fabricators . | . . . . . . . . . Repair Stations 3 | . 3 . . . . . . . Recycling Units . | . . . . . . . . . Scanalyzers . | . . . . . . . . . Garrison Access 1 | . . . . . . 1 . . Terminal Hacks 7 | . 3 1 . 1 . 2 . . Record 1 | . . . . 1 . . . . Robot Analysis 2 | . 2 . . . . . . . Branch Access Points 1 | . . . . . . 1 . . Hauler Manifests 1 | . 1 . . . . . . . Zone Layout 2 | . . 1 . . . 1 . . Fabricator Hacks . | . . . . . . . . . Repair Station Hacks 2 | . 2 . . . . . . . Scan Component 1 | . 1 . . . . . . . Repair 1 | . 1 . . . . . . . Recycling Unit Hacks . | . . . . . . . . . Scanalyzer . | . . . . . . . . . Garrison Access Hacks 1 | . . . . . . 1 . . Unlock Access 1 | . . . . . . 1 . . Unauthorized Hacks 11 | . 8 1 . . . 2 . . Terminals 11 | . 8 1 . . . 2 . . Assimilate 1 | . . 1 . . . . . . Botnet 4 | . 3 . . . . 1 . . Skim 6 | . 5 . . . . 1 . . Fabricators . | . . . . . . . . . Repair Stations . | . . . . . . . . . Recycling Units . | . . . . . . . . . Scanalyzers . | . . . . . . . . . Garrison Access . | . . . . . . . . . Data Cores Recovered . | . . . . . . . . . Used . | . . . . . . . . . Hacking Detections 10 | . 6 2 . . . 2 . . Full Trace Events . | . . . . . . . . . Feedback Events . | . . . . . . . . . Feedback Blocked . | . . . . . . . . . Robot Schematics Acquired . | . . . . . . . . . Robots Built . | . . . . . . . . . Authchips . | . . . . . . . . . Time . | . . . . . . . . . Total Robot Build Rating . | . . . . . . . . . Part Schematics Acquired . | . . . . . . . . . Parts Built . | . . . . . . . . . Authchips . | . . . . . . . . . Time . | . . . . . . . . . Total Part Build Rating . | . . . . . . . . . Part Studies Acquired . | . . . . . . . . . Parts Repaired 1 | . 1 . . . . . . . Time 26 | . 26 . . . . . . . Parts Recycled . | . . . . . . . . . Recycled Matter . | . . . . . . . . . Retrieved Matter . | . . . . . . . . . Retrieved Components . | . . . . . . . . . Parts Scanalyzed . | . . . . . . . . . Part Schematics Acquired . | . . . . . . . . . Parts Damaged . | . . . . . . . . . Bothacking | -11 -10 -9 -9 -9 -8 -8 -8 -8 ------------ Run | Yrd Mat Mat Min Exi Min Mat Gar Mat Used RIF Installer . | . . . . . . . . . Robots Hacked . | . . . . . . . . . Non-combat . | . . . . . . . . . Combat . | . . . . . . . . . Robot Hacks Applied . | . . . . . . . . . Relay Couplers Released 19 | . . . . . . . 19 . Machine Destruction 19 | . . . . . . . 19 . Fabnet Peak Effective % . | . . . . . . . . . Robots Rewired 3 | . . . . . . . 3 . Allies Hacked . | . . . . . . . . . Hacks Repelled . | . . . . . . . . . Allies | -11 -10 -9 -9 -9 -8 -8 -8 -8 -------- Run | Yrd Mat Mat Min Exi Min Mat Gar Mat Total Allies 13 | . . 1 9 . . . 3 . Largest Group 6 | . . 1 6 2 2 . 3 . Highest-Rated Group 87 | . . 10 87 20 20 . 15 . Highest-Rated Ally 31 | . . 10 31 10 10 . 5 . Initial Warlord ECA Mod 9 | . . . . . . . . 9 Total Orders . | . . . . . . . . . Ally Attacks 99 | . . . 76 . 2 . 21 . Total Damage 1054 | . . . 855 . 29 . 170 . Kills 21 | . . . 20 . . . 1 . Allies Corrupted . | . . . . . . . . . Allies Melted 1 | . . . . . 1 . . . X0-1V1 Amusement Gains 80 | . 13 . . . . . 10 57 Good Acts 36 | . 4 3 19 . 1 5 3 1 Bad Acts 57 | . 6 2 31 . 2 1 10 5 Intel | -11 -10 -9 -9 -9 -8 -8 -8 -8 ------- Run | Yrd Mat Mat Min Exi Min Mat Gar Mat Active Infowar (turns) 5 | . . . 5 . . . . . Seismic 5 | . . . 5 . . . . . Robot Analysis Total 2 | . 2 . . . . . . . Derelict Logs Recovered 1 | . . . 1 . . . . . Drone Launches . | . . . . . . . . . Drone Recoveries . | . . . . . . . . . Exploration | -11 -10 -9 -9 -9 -8 -8 -8 -8 ------------- Run | Yrd Mat Mat Min Exi Min Mat Gar Mat Turns Passed 7388 | 229 1103 824 1294 464 700 735 1782 257 Spaces Moved 3558 | 96 579 432 732 192 287 299 808 133 Core 4 | 2 . . . . . . . 2 Treads 2663 | 94 181 432 732 192 287 299 397 49 Legs 891 | . 398 . . . . . 411 82 Wheels . | . . . . . . . . . Hover . | . . . . . . . . . Flight . | . . . . . . . . . Fastest Speed 50 | 50 120 160 160 240 240 160 120 120 Average Speed 172 | 157 132 160 162 240 240 201 173 148 Slowest Speed 450 | 160 160 160 240 240 240 240 240 450 Overloaded Moves . | . . . . . . . . . Propulsion Burnouts . | . . . . . . . . . Robots Hopped . | . . . . . . . . . Potential Cave-ins . | . . . . . . . . . Cave-ins Triggered . | . . . . . . . . . Exploration Rate (%) 49 | 4 80 36 94 40 67 27 91 10 Regions Visited 8 Branch Regions 3 Pre-discovered Areas 1 | . . . . 1 . . . . Known Exits Taken 4 | . 1 1 . . 1 1 . . Unknown Exits Taken 3 | 1 . . 1 1 . . . . Scrap Searched 2 | . . . 1 . 1 . . . Spaces Dug 96 | . . . 28 . . 2 66 . Terrain Destroyed 161 | . 44 . 28 . . 2 87 . Melee 8 | . . . . . . 2 6 . Projectile 4 | . . . . . . . 4 . AOE 149 | . 44 . 28 . . . 77 . Terrain Rammed . | . . . . . . . . . Walls Destroyed . | . . . . . . . . . Machines Disabled . | . . . . . . . . . Actions | -11 -10 -9 -9 -9 -8 -8 -8 -8 --------- Run | Yrd Mat Mat Min Exi Min Mat Gar Mat Total 4271 | 130 796 499 788 196 296 397 994 175 Wait 196 | . 102 7 16 3 . 42 8 18 Move 3550 | 95 578 431 731 191 286 298 807 133 Hop . | . . . . . . . . . Pick Up 44 | 7 10 9 3 . 1 7 6 1 Fast Attach 31 | 6 6 2 1 1 1 6 6 2 Attach 22 | . 5 1 2 . . 2 8 4 Detach 9 | . 2 1 . . 1 3 . 2 Swap 38 | . 7 5 6 . 1 4 14 1 Drop 40 | . 8 7 2 1 3 13 2 4 Fire 266 | 21 74 34 22 . . 16 92 7 Melee 25 | . . 2 3 . 3 6 8 3 Ram . | . . . . . . . . . Kick 6 | . 4 . . . . . 2 . Crush 4 | 1 . . 2 . . . 1 . Escape Stasis 13 | . . . . . . . 13 . Rewire 27 | . . . . . . . 27 . Trap . | . . . . . . . . . Miscellaneous . | . . . . . . . . . Route ------- -11/Scrapyard -10/Materials (discovered 5 exits: *Mat x3 / [*Min] / [*Sub]) -9/Materials (discovered 5 exits: *Mat x3 / *Min x2) -9/Mines (discovered 2 exits: *Mat / *Exi) -9/Exiles -8/Mines (discovered 2 exits: *Mat x2) -8/Materials (discovered 3 exits: Fac x2 / Gar) -8/Garrison (discovered 4 exits: *Fac x3 / [*Mat]) -8/Materials History --------- Turn | Location | Event 2 | -11/Scrapyard | Met Revision 17 7 | -11/Scrapyard | Discovered new exit (range 15) 230 | -11/Scrapyard | Entered Materials 307 | -10/Materials | Build established: Mutant 533 | -10/Materials | Discovered new exit (range 16) 583 | -10/Materials | Discovered new exit (range 7) 634 | -10/Materials | Discovered new exit (range 7) 738 | -10/Materials | Repaired Lgt. Treads 882 | -10/Materials | Prayed at D.C.S.S. Altar Unit 1027 | -10/Materials | X0-1V1 mutated your Weapon slot to Propulsion slot 1043 | -10/Materials | X0-1V1 activates XOMVISION 1046 | -10/Materials | Identified exit to Materials 1046 | -10/Materials | X0-1V1 revealed exit location to -9/Materials 1060 | -10/Materials | Heat dissipation permanently improved by X0-1V1 (+15; -75 max core) 1063 | -10/Materials | X0-1V1 sent hostile G-34 Mercenary (x3) 1092 | -10/Materials | Learned location of 1 exit from Materials 1142 | -10/Materials | Learned 2 Storage zone layouts 1182 | -10/Materials | Learned Storage emergency access door positions 1214 | -10/Materials | Learned location of 1 exit from Recycling 1271 | -10/Materials | Learned location of 3 exits from Materials 1315 | -10/Materials | Learned location of 3 exits from Materials 1333 | -10/Materials | Entered another Materials area 1333 | -9/Materials | Evolved 2 slots: Utility x1, Weapon x1 1334 | -9/Materials | Identified exit to Materials 1334 | -9/Materials | Identified exit to Mines 1553 | -9/Materials | Ranged accuracy permanently improved by X0-1V1 (+6%; -60 max core) 1829 | -9/Materials | Build established: Scavenger-Mutant 2149 | -9/Materials | X0-1V1 enhanced Transport squad support 2157 | -9/Materials | Entered Mines 2157 | -9/Mines | Accompanied by 1 ally 2180 | -9/Mines | Deemed a non-threat by the Exiles lab entrance 2181 | -9/Mines | Discovered new exit (range 5) 2258 | -9/Mines | Assisted by bots powering up and referring to "LRC-V3" 2346 | -9/Mines | Discovered exit to Materials (range 9) 2537 | -9/Mines | Discovered exit to Materials (range 15) 2787 | -9/Mines | Found a Scrap Suit stashed away for nefarious purposes 2819 | -9/Mines | X0-1V1 sent someone to keep an eye on you 2997 | -9/Mines | X0-1V1 added 0b10 threat records associated with you (minor) 3029 | -9/Mines | X0-1V1 activates XOMVISION 3053 | -9/Mines | System corruption reached 10% 3121 | -9/Mines | Core integrity restored by X0-1V1 (+58) 3167 | -9/Mines | X0-1V1 sent you into danger 3181 | -9/Mines | X0-1V1 mutated your Utility slot to Power slot 3186 | -9/Mines | X0-1V1 added 0b10 threat records associated with you (considerable) 3193 | -9/Mines | Core integrity permanently improved by X0-1V1 (+200) 3211 | -9/Mines | X0-1V1 vaporized surrounding terrain (radius 15) 3212 | -9/Mines | X0-1V1 sent hostile S-10 Pest (x4) 3232 | -9/Mines | X0-1V1 tapped a No Entrance sign 3244 | -9/Mines | X0-1V1 sent you into danger 3246 | -9/Mines | X0-1V1 sent allied B-36 Bruiser (x4) 3260 | -9/Mines | X0-1V1 activates XOMVISION 3307 | -9/Mines | X0-1V1 added 0b10 threat records associated with you (major) 3381 | -9/Mines | X0-1V1 mutated your Propulsion slot to Utility slot 3394 | -9/Mines | X0-1V1 vaporized surrounding terrain (radius 21) 3425 | -9/Mines | X0-1V1 rewrote B-36 Bruiser IFF filter 3451 | -9/Mines | X0-1V1 added 0b10 threat records associated with you (minor) 3451 | -9/Mines | Entered Exiles 3451 | -9/Exiles | Accompanied by 2 allies 3483 | -9/Exiles | Discovered new exit (range 16) 3517 | -9/Exiles | Met 8R-AWN 3553 | -9/Exiles | Met EX-HEX 3644 | -9/Exiles | Met EX-DEC 3656 | -9/Exiles | Learned location of Zion (-6) 3915 | -9/Exiles | Entered Mines 3915 | -8/Mines | Accompanied by 2 allies 4097 | -8/Mines | Discovered exit to Materials (range 11) 4464 | -8/Mines | X0-1V1 revealed exit location to -8/Materials 4479 | -8/Mines | X0-1V1 added 0b10 threat records associated with you (considerable) 4615 | -8/Mines | Entered Materials 4615 | -8/Materials | Evolved 2 slots: Propulsion x1, Utility x1 4616 | -8/Materials | Identified exit to Factory 5218 | -8/Materials | X0-1V1 sent you to a vault 5226 | -8/Materials | Found Prototype Slashing Weapon 5226 | -8/Materials | Identified Scimitar of Distortion 5343 | -8/Materials | Identified exit to Garrison 5350 | -8/Materials | Entered Garrison 5532 | -8/Garrison | Triggered checkpoint 5569 | -8/Garrison | Discovered new exit (range 6) 5682 | -8/Garrison | Garrison Relay disabled 5686 | -8/Garrison | Triggered checkpoint 5762 | -8/Garrison | Triggered checkpoint 5928 | -8/Garrison | Destroyed 7 combat bots 5946 | -8/Garrison | Triggered checkpoint 6014 | -8/Garrison | Garrison Relay disabled 6065 | -8/Garrison | Discovered exit to Factory (range 12) 6093 | -8/Garrison | X0-1V1 revealed exit location to -7/Factory 6138 | -8/Garrison | Triggered checkpoint 6166 | -8/Garrison | X0-1V1 sent you into danger 6207 | -8/Garrison | Garrison Relay disabled 6356 | -8/Garrison | Triggered checkpoint 6455 | -8/Garrison | Discovered exit to Factory (range 9) 6488 | -8/Garrison | Triggered checkpoint 6492 | -8/Garrison | Build established: Mutant 6565 | -8/Garrison | Lost 7 parts (2p3n1u1w) 6565 | -8/Garrison | Garrison Relay disabled 6674 | -8/Garrison | X0-1V1 vaporized surrounding terrain (radius 24) 6686 | -8/Garrison | Triggered checkpoint 6760 | -8/Garrison | Triggered checkpoint 6838 | -8/Garrison | Garrison Relay disabled 7044 | -8/Garrison | X0-1V1 sent hostile G-34 Mercenary (x3) 7069 | -8/Garrison | X0-1V1 mutated your Utility slot to Weapon slot 7132 | -8/Garrison | Entered Materials 7219 | -8/Materials | System corruption reached 10% 7323 | -8/Materials | X0-1V1 upgraded hostiles (x1) 7353 | -8/Materials | Core integrity fell below 50% 7385 | -8/Materials | Core integrity fell below 20% 7389 | -8/Materials | Destroyed by H-71 Marshal with Heavy Mass Driver Last Messages --------------- 07334_ Penetrated by Slug. 07334_ Carbon-fiber Leg destroyed. 07334_ Knocked back. 07344_ KCT0ZN<2DB&U1HPTAW&7RY 07352_ Penetrated by Slug. 07352_ Imp. Carbon-fiber Leg destroyed. 07352_ Knocked back. A concussive blast radiates outward. 07356_ Knocked back. 07358_ Acquired 6 matter. 07362_ U-05 Engineer lays Concrete. 07368_ The unstable cave ceiling collapses. 07368_ U-05 Engineer lays Concrete. 07372_ System corrupted: Matter fused (-7). 07378_ Critical hit (Burn: +37). 07378_ Knocked back. 07382_ Imp. Carbon-fiber Leg destroyed. 07387_ System corrupted: Matter fused (-5). 07389_ Scimitar of Distortion destroyed. 07389_ X0-1V1 cackles wildly! Map ----- +----------------------------------------------------+ | ?????????????????????????????????????????????????? | | ?????????????????????????????????????????????????? | | ?????????????????????????????????????????????????? | | ?????????????????????????????????????????????????? | | ?????????????????????????????????????????????????? | | ?????????????????????????????????????????????????? | | ?????????????????????????????????????????????????? | | ?????????????????????????????????????????????????? | | ?????????????????????????????????????????????????? | | ?????????????????????????????????????????????????? | | ?????????????????????????????????????????????????? | | ?????????????????????????????????????????????????? | | ????????????????????????????????????????????###### | | ????????????????????????????????#######??# """T""" | | ????????????????????????????????# ?# | | ???????????????????????????????## ?# ! ! | | ???????????????????????#########[[ *** # | | ????????????????######## ! ###%! ** ####+#### | | ????????????????# # #?#! !** #??# | | ????????????????# # """ #?#!! #??# #### | | ????????????????# ! # """ #?# #??# #??? | | ????????????????# # """ #?# #??# #??? | | ????????????????#== # %#?# * [ #??# #??? | | ???????????????##=[ %###;+###?#####"####### #### | | ??????????###### ### *;# #????# | | ??? %[= u g@% ###### | | ??? = YH g | | ??? !*! g #################### | | ???? ########### # ### ## #??????????????????? | | ???????????????###???##?#####;#??????????????????? | | ?????????????????????????????##??????????????????? | | ?????????????????????????????????????????????????? | | | | | | | | | | | | | | | | | | | | | | | | | | | | | | | | | | | | | +----------------------------------------------------+ Best States ------------- Heat Dissipation 46 Energy Generation 21 Energy Capacity 1530 Matter Stores 544 Matter Capacity 800 Sight Range 20 Terrain Scan Density 10 Armor Coverage 600 Evasion (%) 55 Core Analysis 6 Recoil Reduction 3 Item Schematics ----------------- None Robot Schematics ------------------ None Fabricated ------------ Nothing Repaired ---------- Lgt. Treads | 30% | -10/Materials Studied --------- None Alien Tech Used ----------------- None Achievements -------------- None Challenges ------------ None Game ------ Seed LaserZhirovStripper Manual? 0 Play Time 00:32:40 Cumulative 278.6 hours Start 2026.06.27 @ 18:16:26 End 2026.06.27 @ 18:47:13 Sessions 1 Manual Loads 0 Difficulty Rogue Special Mode None Game No. 285 Rogue 285 Adventurer 0 Explorer 0 Win Type - Total 14 Types 9/1/2/0/1/0/0/0/0/1 Lore% 89 Gallery% 77 Achievement% 64 Wizard Run 0 Options --------- Layout 1 ASCII 0 Keyboard 1 Movement Arrows Keybinds 0 Fullscreen 1 Font 24/Smallcaps Map View 50x40 Zoom Use 0% Tactical HUD 1 Map Filters NONE Filters NONE Steam 1 RUN: f575acd1-9b02-4b73-9c06-ee8b5a6fc44e